[Event "Hasselbacken Open 2018"]
[Site "Stockholm"]
[Date "2018.11.02"]
[Round "2"]
[White "Ingbrandt, Johan"]
[Black "Jogstad, Daniel"]
[Result "1-0"]
[ECO "A05"]
[WhiteElo "2364"]
[BlackElo "2061"]
[Annotator "ChessBase"]
[PlyCount "73"]
[EventDate "2018.11.02"]
[EventCountry "SWE"]
[SourceTitle "playchess.com"]
[Source "ChessBase"]
[SourceQuality "1"]
[TimeControl "900+5"]

1. Nf3 {[%emt 0:00:00]} Nf6 {[%emt 0:00:00]} 2. g3 {[%emt 0:00:00]} g6 {[%emt 0:00:00]} 3. b3 {[%emt 0:00:03]} Bg7 {[%emt 0:00:00]} 4. Bb2 {[%emt 0:00:02]} d6 {[%emt 0:00:10]} 5. d4 {[%emt 0:00:02]} O-O {[%emt 0:00:10]} 6. Bg2 {[%emt 0:00:02]} c6 {[%emt 0:00:29]} 7. O-O {[%emt 0:00:09]} Qa5 {[%emt 0:00:30]} 8. Nbd2 {[%emt 0:01:05]} Qh5 {[%emt 0:01:15]} 9. e4 {[%emt 0:01:41]} Bh3 {[%emt 0:00:12]} 10. Bxh3 {[%emt 0:01:02]} Qxh3 {[%emt 0:00:10]} 11. Ng5 {[%emt 0:00:05]} Qh6 {[%emt 0:02:04]} 12. f4 {[%emt 0:00:25]} e5 {[%emt 0:01:59]} 13. dxe5 {[%emt 0:03:48]} dxe5 {[%emt 0:00:01]} 14. fxe5 {[%emt 0:01:16]} Nfd7 {[%emt 0:00:01]} 15. Ngf3 {[%emt 0:00:46]} Qe3+ {[%emt 0:00:22]} 16. Kg2 {[%emt 0:00:17]} b5 {[%emt 0:02:01]} 17. Bd4 {[%emt 0:00:31]} Qh6 {[%emt 0:00:09]} 18. a4 {[%emt 0:00:43]} c5 {[%emt 0:00:24]} 19. Bb2 Nc6 20. axb5 {[%emt 0:00:15]} Ncxe5 {[%emt 0:00:01]} 21. Bxe5 {[%emt 0:00:23]} Nxe5 {[%emt 0:00:02]} 22. Ra4 {[%emt 0:00:32]} Rfd8 {[%emt 0:00:26]} 23. Qe2 {[%emt 0:00:05]} Rd7 {[%emt 0:01:21]} 24. Nc4 {[%emt 0:00:13]} Rad8 {[%emt 0:00:13]} 25. h3 {[%emt 0:00:21]} Nxc4 {[%emt 0:01:41]} 26. Qxc4 {[%emt 0:00:48]} Qe3 {[%emt 0:00:01]} 27. Rf2 {[%emt 0:00:23]} h5 {[%emt 0:02:40]} 28. Re2 {[%emt 0:00:11]} Qc1 {[%emt 0:00:01]} 29. e5 {[%emt 0:00:36]} g5 {[%emt 0:00:51]} 30. e6 {[%emt 0:00:14]} fxe6 {[%emt 0:00:01]} 31. Qxe6+ {[%emt 0:00:05]} Kh8 {[%emt 0:00:01]} 32. Qg6 {[%emt 0:00:32]} Rd5 {[%emt 0:00:17]} 33. Qxh5+ Kg8 34. Re8+ {[%emt 0:00:36]} Rxe8 {[%emt 0:00:01]} 35. Qxe8+ {[%emt 0:00:02]} Kh7 {[%emt 0:00:02]} 36. Qe4+ {[%emt 0:00:02]} Kh8 {[%emt 0:00:03]} 37. Qxd5 {[%emt 0:00:04]} 1-0

[Event "Hasselbacken Open 2018"]
[Site "Stockholm"]
[Date "2018.11.02"]
[Round "2"]
[White "Briem, Stephan"]
[Black "Lindberg, Bengt"]
[Result "0-1"]
[ECO "E15"]
[WhiteElo "2062"]
[BlackElo "2401"]
[Annotator "ChessBase"]
[PlyCount "90"]
[EventDate "2018.11.02"]
[EventCountry "SWE"]
[SourceTitle "playchess.com"]
[Source "ChessBase"]
[SourceQuality "1"]
[TimeControl "900+5"]

1. d4 {[%emt 0:00:00]} Nf6 {[%emt 0:00:00]} 2. c4 {[%emt 0:00:00]} e6 {[%emt 0:00:00]} 3. Nf3 {[%emt 0:00:12]} b6 {[%emt 0:00:00]} 4. g3 {[%emt 0:00:15]} Ba6 {[%emt 0:00:02]} 5. b3 {[%emt 0:00:10]} Bb4+ {[%emt 0:00:03]} 6. Bd2 {[%emt 0:00:10]} Be7 {[%emt 0:00:02]} 7. Bg2 {[%emt 0:00:09]} d5 {[%emt 0:00:06]} 8. Ne5 {[%emt 0:01:18]} Bb7 {[%emt 0:00:26]} 9. O-O {[%emt 0:00:14]} O-O {[%emt 0:00:05]} 10. Bf4 {[%emt 0:01:17]} Qc8 {[%emt 0:01:36]} 11. Nc3 {[%emt 0:01:21]} dxc4 {[%emt 0:00:10]} 12. Bxb7 {[%emt 0:00:50]} Qxb7 {[%emt 0:00:03]} 13. Nxc4 {[%emt 0:01:35]} Rd8 {[%emt 0:00:15]} 14. Be5 {[%emt 0:00:55]} c5 {[%emt 0:02:29]} 15. e3 {[%emt 0:00:56]} b5 {[%emt 0:00:26]} 16. Nd2 {[%emt 0:01:03]} cxd4 {[%emt 0:03:40]} 17. exd4 {[%emt 0:00:17]} Nc6 {[%emt 0:00:44]} 18. Qf3 {[%emt 0:00:52]} Qb6 {[%emt 0:00:44]} 19. Rfd1 {[%emt 0:01:32]} Rac8 {[%emt 0:00:44]} 20. Ne2 {[%emt 0:01:25]} Nd7 {[%emt 0:02:00]} 21. Qe4 {[%emt 0:01:15]} f5 {[%emt 0:01:04]} 22. Qe3 {[%emt 0:00:35]} Ndxe5 {[%emt 0:00:09]} 23. dxe5 {[%emt 0:00:05]} Qxe3 {[%emt 0:00:03]} 24. fxe3 {[%emt 0:00:01]} Bc5 {[%emt 0:00:10]} 25. Kf2 {[%emt 0:00:25]} Nxe5 {[%emt 0:00:03]} 26. Nf1 {[%emt 0:00:04]} Ng4+ {[%emt 0:00:34]} 27. Kf3 {[%emt 0:00:08]} e5 {[%emt 0:00:04]} 28. e4 {[%emt 0:00:03]} g6 {[%emt 0:00:02]} 29. h3 {[%emt 0:00:03]} Nf6 {[%emt 0:00:01]} 30. exf5 {[%emt 0:00:06]} gxf5 {[%emt 0:00:05]} 31. Rac1 {[%emt 0:00:08]} Rxd1 {[%emt 0:00:06]} 32. Rxd1 {[%emt 0:00:01]} Kf7 {[%emt 0:00:15]} 33. Nc3 {[%emt 0:00:08]} a6 {[%emt 0:00:09]} 34. Nd5 {[%emt 0:00:06]} Nxd5 {[%emt 0:00:07]} 35. Rxd5 {[%emt 0:00:01]} Ke6 {[%emt 0:00:01]} 36. Rd2 {[%emt 0:00:02]} Bd4 {[%emt 0:00:10]} 37. Ke2 {[%emt 0:00:14]} Rc3 {[%emt 0:00:04]} 38. Rd3 {[%emt 0:00:01]} Rxd3 {[%emt 0:00:11]} 39. Kxd3 {[%emt 0:00:02]} Kd5 {[%emt 0:00:01]} 40. Nd2 {[%emt 0:00:11]} h5 {[%emt 0:00:05]} 41. a4 {[%emt 0:00:06]} bxa4 {[%emt 0:00:04]} 42. bxa4 {[%emt 0:00:00]} Bf2 {[%emt 0:00:07]} 43. g4 {[%emt 0:00:08]} fxg4 {[%emt 0:00:18]} 44. hxg4 {[%emt 0:00:03]} hxg4 {[%emt 0:00:02]} 45. Ne4 {[%emt 0:00:00]} g3 {[%emt 0:00:06] Kd4+} 0-1

[Event "Hasselbacken Open 2018"]
[Site "Stockholm"]
[Date "2018.11.02"]
[Round "2"]
[White "Eriksson, Lennarth"]
[Black "Lindgren, Philip"]
[Result "0-1"]
[ECO "A06"]
[WhiteElo "2056"]
[BlackElo "2374"]
[Annotator "NA"]
[PlyCount "74"]
[EventDate "2018.11.02"]
[EventCountry "SWE"]
[SourceTitle "playchess.com"]
[Source "ChessBase"]
[SourceQuality "1"]
[TimeControl "900+5"]

1. Nf3 {[%emt 0:00:00]} d5 {[%emt 0:00:00]} 2. g3 {[%emt 0:00:10]} c6 {[%emt 0:00:06]} 3. Bg2 {[%emt 0:00:09]} Bg4 {[%emt 0:00:03]} 4. c4 {[%emt 0:00:07]} e6 {[%emt 0:00:16]} 5. b3 {[%emt 0:00:11]} Nf6 {[%emt 0:01:06]} 6. Bb2 {[%emt 0:00:23]} Nbd7 {[%emt 0:00:02]} 7. O-O {[%emt 0:01:14]} Bd6 {[%emt 0:00:25]} 8. d4 {[%emt 0:00:25]} O-O {[%emt 0:00:23]} 9. Nbd2 {[%emt 0:00:49]} Qe7 {[%emt 0:00:14]} 10. Ne5 {[%emt 0:00:47]} Bf5 {[%emt 0:00:20]} 11. f3 {[%emt 0:00:34] D11: Slav Defence: 3 Nf3 sidelines and 3...Nf6 4 e3 Bg4} (11. Nxd7 Nxd7 12. e4 dxe4 13. Nxe4 Ba3 14. Bc3 Bb4 15. Bb2 Ba3 16. Bc3 Bb4 17. Bb2 Ba3 18. Bc3 Bb4 {½-½ (18) Galliamova,A (2487)-Kosintseva,T (2581) Moscow 2010}) 11... Nxe5 {[%emt 0:02:44]} 12. dxe5 {[%emt 0:00:05]} Bc5+ {[%emt 0:00:02]} 13. Kh1 {[%emt 0:00:02]} Nd7 {[%emt 0:00:04]} 14. g4 {[%emt 0:02:20]} Bg6 {[%emt 0:00:06]} 15. f4 {[%emt 0:00:15]} f6 {[%emt 0:03:58]} 16. cxd5 {[%emt 0:00:58]} cxd5 {[%emt 0:00:24]} 17. f5 {[%emt 0:00:08]} Bf7 {[%emt 0:00:10]} 18. exf6 {[%emt 0:01:51]} Nxf6 {[%emt 0:00:07]} 19. g5 $146 {[%emt 0:02:37]} (19. e4 $11) 19... Ng4 {[%emt 0:00:03]} 20. e4 {[%emt 0:00:58]} Qxg5 {[%emt 0:02:13]} 21. Nf3 {[%emt 0:01:24]} Qh5 {[%emt 0:00:21]} 22. Qc2 {[%emt 0:00:50]} dxe4 {[%emt 0:01:14]} 23. Qc3 {[%emt 0:00:27]} (23. Qxe4 $142 exf5 24. Qe1) 23... e5 {[%emt 0:00:21]} 24. h3 {[%emt 0:00:10]} exf3 {[%emt 0:00:31]} 25. Qxf3 {[%emt 0:00:04]} Ne3 {[%emt 0:00:55]} 26. Rg1 {[%emt 0:00:06]} Qxf3 {[%emt 0:00:44]} 27. Bxf3 {[%emt 0:00:01]} Nc2 {[%emt 0:00:15]} 28. Rxg7+ {[%emt 0:00:04]} Kxg7 {[%emt 0:00:01]} 29. Bxe5+ {[%emt 0:00:01]} Kg8 $19 {[%emt 0:00:03]} 30. Rc1 {[%emt 0:00:00]} Bd4 {[%emt 0:00:03]} 31. Bf4 {[%emt 0:00:12]} Ne3 {[%emt 0:00:06]} 32. Rc7 {[%emt 0:00:04]} Nxf5 {[%emt 0:00:04]} 33. Be4 {[%emt 0:00:06]} Be6 {[%emt 0:00:11]} 34. Rc2 {[%emt 0:00:10]} Bg7 {[%emt 0:00:05]} 35. Rg2 {[%emt 0:00:04]} Kh8 {[%emt 0:00:02]} 36. Bxb7 {[%emt 0:00:04]} Rad8 {[%emt 0:00:03]} 37. Bf3 {[%emt 0:00:04]} Bd5 {[%emt 0:00:03]} 0-1

[Event "Hasselbacken Open 2018"]
[Site "Stockholm"]
[Date "2018.11.02"]
[Round "2"]
[White "Fernandez, Juan Pablo"]
[Black "Schneider, Stefan"]
[Result "0-1"]
[ECO "A20"]
[WhiteElo "2044"]
[BlackElo "2365"]
[Annotator "ChessBase"]
[PlyCount "78"]
[EventDate "2018.11.02"]
[EventCountry "SWE"]
[SourceTitle "playchess.com"]
[Source "ChessBase"]
[SourceQuality "1"]
[TimeControl "900+5"]

1. c4 {[%emt 0:00:00]} e5 {[%emt 0:00:03]} 2. g3 {[%emt 0:00:01]} c6 {[%emt 0:00:05]} 3. Nf3 {[%emt 0:00:23]} e4 {[%emt 0:00:34]} 4. Nd4 {[%emt 0:00:03]} Qb6 {[%emt 0:00:12]} 5. Nb3 {[%emt 0:00:17]} a5 {[%emt 0:00:22]} 6. d3 {[%emt 0:00:45]} Bb4+ {[%emt 0:01:05]} 7. Bd2 {[%emt 0:01:15]} Nf6 {[%emt 0:00:33]} 8. Bg2 {[%emt 0:00:20]} a4 {[%emt 0:01:33]} 9. Bxb4 {[%emt 0:01:36]} Qxb4+ {[%emt 0:00:32]} 10. Qd2 {[%emt 0:00:37]} Na6 {[%emt 0:00:27]} 11. Nd4 {[%emt 0:01:22]} exd3 {[%emt 0:01:38]} 12. exd3 {[%emt 0:00:30]} O-O {[%emt 0:00:07]} 13. O-O {[%emt 0:00:25]} Qxd2 {[%emt 0:02:04]} 14. Nxd2 {[%emt 0:00:02]} Nc5 {[%emt 0:00:01]} 15. Ne4 {[%emt 0:03:12]} Nfxe4 {[%emt 0:01:54]} 16. dxe4 {[%emt 0:00:17]} d6 {[%emt 0:00:03]} 17. Rad1 {[%emt 0:00:32]} Rd8 18. Nf5 {[%emt 0:00:46]} Bxf5 {[%emt 0:00:49]} 19. exf5 {[%emt 0:00:02]} Kf8 {[%emt 0:00:23]} 20. Rfe1 {[%emt 0:00:27]} Rd7 {[%emt 0:00:47]} 21. f4 {[%emt 0:00:34]} Ra6 {[%emt 0:00:06]} 22. Re2 {[%emt 0:00:09]} Rb6 {[%emt 0:00:14]} 23. Red2 {[%emt 0:01:02]} Rb4 {[%emt 0:00:09]} 24. Rc1 {[%emt 0:00:57]} Ke7 {[%emt 0:00:14]} 25. g4 {[%emt 0:00:07]} Kd8 {[%emt 0:00:28]} 26. g5 {[%emt 0:00:12]} f6 {[%emt 0:00:03]} 27. h4 {[%emt 0:00:04]} Kc7 {[%emt 0:00:02]} 28. Kf2 {[%emt 0:00:20]} Rxb2 {[%emt 0:00:17]} 29. Rxb2 {[%emt 0:00:17]} Nd3+ {[%emt 0:00:02]} 30. Ke3 {[%emt 0:00:28]} Nxb2 {[%emt 0:00:04]} 31. Kd4 {[%emt 0:00:11]} Re7 {[%emt 0:00:20]} 32. Kc3 {[%emt 0:00:06]} Re2 {[%emt 0:00:23]} 33. Bf1 {[%emt 0:00:10]} Rf2 {[%emt 0:00:08]} 34. a3 {[%emt 0:00:11]} Kb6 {[%emt 0:00:29]} 35. h5 {[%emt 0:00:03]} h6 {[%emt 0:00:05]} 36. g6 {[%emt 0:00:08]} Kc5 {[%emt 0:00:00]} 37. Bh3 {[%emt 0:00:07]} Nxc4 {[%emt 0:00:27]} 38. Bf1 {[%emt 0:00:04]} Rf3+ {[%emt 0:00:06]} 39. Bd3 {[%emt 0:00:05]} d5 {[%emt 0:00:11] Bxc4 [%clk 0:00:07] Kd4+ Kxd4} 0-1

[Event "Hasselbacken Open 2018"]
[Site "Stockholm"]
[Date "2018.11.02"]
[Round "3"]
[White "Lindberg, Bengt"]
[Black "Evertsson, Lennart"]
[Result "1-0"]
[ECO "B40"]
[WhiteElo "2401"]
[BlackElo "2145"]
[Annotator "ChessBase"]
[PlyCount "114"]
[EventDate "2018.11.02"]
[EventCountry "SWE"]
[SourceTitle "playchess.com"]
[Source "ChessBase"]
[SourceQuality "1"]
[TimeControl "900+5"]

1. e4 {[%emt 0:00:00]} c5 {[%emt 0:00:01]} 2. Nf3 {[%emt 0:00:00]} e6 {[%emt 0:00:03]} 3. d4 {[%emt 0:00:03]} cxd4 {[%emt 0:00:02]} 4. Nxd4 {[%emt 0:00:03]} Nf6 {[%emt 0:00:12]} 5. Nc3 {[%emt 0:00:03]} Nc6 {[%emt 0:00:16]} 6. Nxc6 {[%emt 0:00:10]} bxc6 {[%emt 0:00:16]} 7. e5 {[%emt 0:00:04]} Nd5 {[%emt 0:00:13]} 8. Ne4 {[%emt 0:00:03]} f5 {[%emt 0:01:12]} 9. exf6 {[%emt 0:01:01]} Nxf6 {[%emt 0:00:11]} 10. Nd6+ {[%emt 0:00:07]} Bxd6 {[%emt 0:00:21]} 11. Qxd6 {[%emt 0:00:05]} Ne4 {[%emt 0:00:29]} 12. Qe5 {[%emt 0:00:39]} Nf6 {[%emt 0:00:09]} 13. Qd6 {[%emt 0:01:02]} Ne4 {[%emt 0:00:45]} 14. Qb4 {[%emt 0:00:06]} d5 {[%emt 0:00:21]} 15. Be3 {[%emt 0:00:11]} Kf7 {[%emt 0:02:07]} 16. Bd3 {[%emt 0:00:50]} Nf6 {[%emt 0:00:13]} 17. Bd4 {[%emt 0:00:45]} Qe7 {[%emt 0:01:08]} 18. Qc3 {[%emt 0:00:09]} Bb7 {[%emt 0:00:30]} 19. f4 {[%emt 0:00:14]} a5 {[%emt 0:00:42]} 20. O-O {[%emt 0:00:55]} Rac8 {[%emt 0:01:13]} 21. f5 {[%emt 0:00:36]} e5 {[%emt 0:01:07]} 22. Bxe5 {[%emt 0:00:12]} c5 {[%emt 0:00:15]} 23. Rae1 {[%emt 0:00:19]} Rhe8 {[%emt 0:00:56]} 24. Bg3 {[%emt 0:03:26]} Qd7 {[%emt 0:00:36]} 25. Rxe8 {[%emt 0:00:35]} Qxe8 {[%emt 0:00:27]} 26. Re1 {[%emt 0:01:02]} Qd7 {[%emt 0:00:20]} 27. Qxa5 {[%emt 0:00:43]} c4 {[%emt 0:00:18]} 28. Bf1 {[%emt 0:00:27]} Qxf5 {[%emt 0:00:40]} 29. Qb4 {[%emt 0:00:11]} Qd7 {[%emt 0:00:16]} 30. Be5 {[%emt 0:00:15]} Ne4 {[%emt 0:00:23]} 31. Bd4 {[%emt 0:00:15]} Kg8 {[%emt 0:00:15]} 32. Re3 {[%emt 0:00:25]} Rf8 {[%emt 0:00:14]} 33. Qe1 {[%emt 0:00:15]} Qg4 {[%emt 0:00:15]} 34. Be2 {[%emt 0:00:22]} Qg6 {[%emt 0:00:11]} 35. Bf3 {[%emt 0:00:33]} Ng5 {[%emt 0:00:09]} 36. Kh1 {[%emt 0:01:03]} Nxf3 {[%emt 0:00:18]} 37. gxf3 {[%emt 0:00:10]} h6 {[%emt 0:00:22]} 38. Qg3 {[%emt 0:00:14]} Qxg3 {[%emt 0:00:05]} 39. hxg3 {[%emt 0:00:01]} Kf7 {[%emt 0:00:05]} 40. Kg2 {[%emt 0:00:10]} Ra8 {[%emt 0:00:02]} 41. a3 {[%emt 0:00:02]} Bc6 {[%emt 0:00:03]} 42. g4 {[%emt 0:00:17]} Ba4 {[%emt 0:00:04]} 43. Re2 {[%emt 0:00:02]} Rc8 {[%emt 0:00:12]} 44. Kg3 {[%emt 0:00:03]} Bb5 {[%emt 0:00:06]} 45. Re5 {[%emt 0:00:03]} Bc6 {[%emt 0:00:04]} 46. Rf5+ {[%emt 0:00:11]} Kg6 {[%emt 0:00:08]} 47. Re5 {[%emt 0:00:03]} Kf7 {[%emt 0:00:04]} 48. f4 {[%emt 0:00:02]} Rd8 {[%emt 0:00:04]} 49. f5 {[%emt 0:00:03]} Ba4 {[%emt 0:00:04]} 50. Re2 {[%emt 0:00:05]} Rc8 {[%emt 0:00:05]} 51. Kf4 {[%emt 0:00:04]} Bd7 {[%emt 0:00:04]} 52. Re5 {[%emt 0:00:02]} Bc6 {[%emt 0:00:03]} 53. Re6 {[%emt 0:00:01]} Ba4 {[%emt 0:00:03]} 54. Rg6 {[%emt 0:00:02]} Rg8 {[%emt 0:00:02]} 55. Ra6 {[%emt 0:00:16]} Bxc2 {[%emt 0:00:09]} 56. Ra7+ {[%emt 0:00:01]} Kf8 {[%emt 0:00:08]} 57. Ke5 {[%emt 0:00:04]} Be4 {[%emt 0:00:05] Kxe4} 1-0

[Event "Hasselbacken Open 2018"]
[Site "Stockholm"]
[Date "2018.11.02"]
[Round "3"]
[White "Lindgren, Philip"]
[Black "Crevatin, Leo"]
[Result "1-0"]
[ECO "D11"]
[WhiteElo "2374"]
[BlackElo "2130"]
[Annotator "ChessBase"]
[PlyCount "113"]
[EventDate "2018.11.02"]
[EventCountry "SWE"]
[SourceTitle "playchess.com"]
[Source "ChessBase"]
[SourceQuality "1"]
[TimeControl "900+5"]

1. d4 {[%emt 0:00:00]} d5 {[%emt 0:00:00]} 2. c4 {[%emt 0:00:00]} c6 {[%emt 0:00:00]} 3. Nf3 {[%emt 0:00:03]} e6 {[%emt 0:00:01]} 4. e3 {[%emt 0:00:08]} Nf6 {[%emt 0:00:05]} 5. Bd3 {[%emt 0:00:11]} Nbd7 {[%emt 0:00:08]} 6. O-O {[%emt 0:00:12]} dxc4 {[%emt 0:00:04]} 7. Bxc4 {[%emt 0:00:04]} Bd6 {[%emt 0:00:02]} 8. b3 {[%emt 0:02:07]} O-O {[%emt 0:00:34]} 9. Bb2 {[%emt 0:00:17]} Qc7 {[%emt 0:00:13]} 10. Nbd2 {[%emt 0:01:01]} e5 {[%emt 0:00:20]} 11. Qc2 {[%emt 0:00:27]} h6 {[%emt 0:01:14]} 12. h3 {[%emt 0:00:50]} Re8 {[%emt 0:00:12]} 13. Bd3 {[%emt 0:01:46]} exd4 {[%emt 0:00:33]} 14. Nxd4 {[%emt 0:00:59]} Nf8 {[%emt 0:01:58]} 15. Rac1 {[%emt 0:00:35]} a6 {[%emt 0:00:15]} 16. N2f3 {[%emt 0:00:43]} Nd5 {[%emt 0:01:05]} 17. Nf5 {[%emt 0:00:31]} Bxf5 {[%emt 0:01:34]} 18. Bxf5 {[%emt 0:00:02]} Rad8 {[%emt 0:00:31]} 19. Qc4 {[%emt 0:01:11]} Ne6 {[%emt 0:00:32]} 20. Rfd1 {[%emt 0:00:22]} Qa5 {[%emt 0:00:45]} 21. Bb1 {[%emt 0:00:40]} Qb6 {[%emt 0:00:54]} 22. Qg4 {[%emt 0:00:30]} Bf8 {[%emt 0:00:37]} 23. Nd4 {[%emt 0:01:54]} Nxd4 {[%emt 0:00:53]} 24. Rxd4 {[%emt 0:00:28]} Re5 {[%emt 0:01:38]} 25. Rcd1 {[%emt 0:00:54]} Rg5 {[%emt 0:00:35]} 26. Qf3 {[%emt 0:00:17]} Bc5 {[%emt 0:00:13]} 27. Rg4 {[%emt 0:00:25]} Re8 {[%emt 0:00:46]} 28. Rxg5 {[%emt 0:00:08]} hxg5 {[%emt 0:00:01]} 29. Qf5 {[%emt 0:00:28]} Bxe3 {[%emt 0:01:12]} 30. Qh7+ {[%emt 0:00:09]} Kf8 {[%emt 0:00:01]} 31. fxe3 {[%emt 0:00:04]} Qxe3+ {[%emt 0:00:13]} 32. Kh1 {[%emt 0:00:03]} f6 {[%emt 0:00:17]} 33. Qh8+ {[%emt 0:00:05]} Kf7 {[%emt 0:00:02]} 34. Qh5+ {[%emt 0:00:02]} Kf8 {[%emt 0:00:07]} 35. Qg4 {[%emt 0:00:06]} Nf4 {[%emt 0:00:07]} 36. Qf3 {[%emt 0:00:11]} Qe6 {[%emt 0:00:09]} 37. Ba3+ {[%emt 0:00:04]} Kg8 {[%emt 0:00:03]} 38. Bb2 {[%emt 0:00:03]} Kf8 {[%emt 0:00:06]} 39. Bc3 {[%emt 0:00:04]} Qf7 {[%emt 0:00:05]} 40. Kh2 {[%emt 0:00:03]} Qc7 {[%emt 0:00:02]} 41. Qg3 {[%emt 0:00:04]} Re2 {[%emt 0:00:02]} 42. Rg1 {[%emt 0:00:07]} Qb6 {[%emt 0:00:05]} 43. Qf3 {[%emt 0:00:11]} Qc5 {[%emt 0:00:07]} 44. Be1 {[%emt 0:00:04]} Qe5 {[%emt 0:00:09]} 45. Bg3 {[%emt 0:00:02]} Re3 {[%emt 0:00:04]} 46. Qf2 {[%emt 0:00:04]} Re2 {[%emt 0:00:07]} 47. Qf3 {[%emt 0:00:06]} Re3 {[%emt 0:00:01]} 48. Qg4 {[%emt 0:00:04]} b5 {[%emt 0:00:08]} 49. Qc8+ {[%emt 0:00:03]} Kf7 {[%emt 0:00:02]} 50. Qd7+ {[%emt 0:00:02]} Kg8 {[%emt 0:00:03]} 51. Qc8+ {[%emt 0:00:05]} Kf7 {[%emt 0:00:00]} 52. Qg4 {[%emt 0:00:04]} a5 {[%emt 0:00:03]} 53. Rd1 {[%emt 0:00:04]} Re2 {[%emt 0:00:07]} 54. Bxf4 {[%emt 0:00:06]} gxf4 {[%emt 0:00:04]} 55. Qg6+ {[%emt 0:00:08]} Ke7 {[%emt 0:00:08]} 56. Qxg7+ {[%emt 0:00:02]} Ke6 {[%emt 0:00:01]} 57. Qd7# {[%emt 0:00:06]} 1-0

[Event "Hasselbacken Open 2018"]
[Site "Stockholm"]
[Date "2018.11.02"]
[Round "3"]
[White "Schneider, Stefan"]
[Black "Nordebrink, Johan"]
[Result "1/2-1/2"]
[ECO "E11"]
[WhiteElo "2365"]
[BlackElo "2125"]
[Annotator "NA"]
[PlyCount "70"]
[EventDate "2018.11.02"]
[EventCountry "SWE"]
[SourceTitle "playchess.com"]
[Source "ChessBase"]
[SourceQuality "1"]
[TimeControl "900+5"]

1. d4 {[%emt 0:00:00]} Nf6 {[%emt 0:00:00]} 2. c4 {[%emt 0:00:00]} e6 {[%emt 0:00:01]} 3. Nf3 {[%emt 0:00:03]} Bb4+ {[%emt 0:00:09]} 4. Bd2 {[%emt 0:00:04]} Be7 {[%emt 0:00:03] LiveBook: 116 Games} 5. Nc3 {[%emt 0:00:25]} d5 {[%emt 0:00:08]} 6. cxd5 {[%emt 0:00:14]} exd5 {[%emt 0:00:15]} 7. Qc2 {[%emt 0:00:25]} O-O {[%emt 0:00:08]} 8. Bg5 {[%emt 0:00:03]} Be6 {[%emt 0:02:33]} 9. e3 {[%emt 0:00:06] D35: Queen's Gambit Declined: Exchange Variation} c5 {[%emt 0:00:19]} 10. dxc5 {[%emt 0:01:34]} Bxc5 {[%emt 0:00:19]} 11. Bd3 {[%emt 0:00:13]} h6 {[%emt 0:00:10]} 12. Bh4 {[%emt 0:00:02]} Nc6 {[%emt 0:00:10]} 13. O-O {[%emt 0:01:43]} Qe7 {[%emt 0:02:47]} 14. a3 {[%emt 0:00:47]} Rac8 {[%emt 0:00:12]} 15. Qa4 $146 {[%emt 0:02:46]} ({Predecessor:} 15. Rfd1 Rfd8 16. Qe2 a6 {½-½ (61) Kavutskiy,K (2349)-Le,Q (2697) Saint Louis 2015}) 15... Rfd8 {[%emt 0:02:41]} 16. Rad1 {[%emt 0:02:00]} Bd6 {[%emt 0:01:08]} 17. Nb5 {[%emt 0:00:19]} Bb8 {[%emt 0:00:02]} 18. Nbd4 {[%emt 0:00:42]} Bd7 {[%emt 0:00:37]} 19. Nxc6 {[%emt 0:02:03]} (19. Nf5 $16 Qe6 20. N3d4 Nxd4 21. Qxd4) 19... bxc6 {[%emt 0:00:04]} 20. Bg3 {[%emt 0:00:07]} Bxg3 {[%emt 0:00:13]} 21. hxg3 {[%emt 0:00:03]} Bg4 {[%emt 0:00:03]} 22. Rc1 {[%emt 0:00:57]} c5 {[%emt 0:00:06]} 23. Nh2 {[%emt 0:00:24]} Be6 {[%emt 0:00:16]} 24. Bb1 {[%emt 0:00:05]} Qb7 {[%emt 0:01:04]} 25. b4 {[%emt 0:00:35]} c4 {[%emt 0:00:03]} 26. Nf3 {[%emt 0:00:04]} Rd6 {[%emt 0:00:46]} 27. Qc2 {[%emt 0:00:06]} Ne4 {[%emt 0:00:12]} 28. Nd4 {[%emt 0:00:01]} Ra6 {[%emt 0:00:15]} 29. f3 {[%emt 0:00:24]} Nf6 {[%emt 0:00:08]} 30. Qc3 {[%emt 0:00:18]} Rb6 {[%emt 0:00:11]} 31. Bc2 {[%emt 0:00:03]} Re8 {[%emt 0:00:16]} 32. Kh2 {[%emt 0:00:06]} Qc7 {[%emt 0:00:04]} 33. Rfe1 {[%emt 0:00:06]} Nh5 {[%emt 0:00:05]} 34. f4 {[%emt 0:00:03]} Nf6 {[%emt 0:00:02]} 35. Kg1 $17 {[%emt 0:00:03]} (35. e4 $11 {remains equal.}) 35... Bg4 1/2-1/2

[Event "Hasselbacken Open 2018"]
[Site "Stockholm"]
[Date "2018.11.02"]
[Round "3"]
[White "Ivarsson, Torbjorn"]
[Black "Seo, Jung Min"]
[Result "1-0"]
[ECO "A45"]
[WhiteElo "2148"]
[BlackElo "2369"]
[Annotator "NA"]
[PlyCount "83"]
[EventDate "2018.11.02"]
[EventCountry "SWE"]
[SourceTitle "playchess.com"]
[Source "ChessBase"]
[SourceQuality "1"]
[TimeControl "900+5"]

1. d4 {[%emt 0:00:00]} Nf6 {[%emt 0:00:00]} 2. Bf4 {[%emt 0:00:03]} g6 {[%emt 0:00:00]} 3. Nc3 {[%emt 0:00:02]} Bg7 {[%emt 0:00:04]} 4. e4 {[%emt 0:00:01]} d6 {[%emt 0:00:01]} 5. Qd2 {[%emt 0:00:08] LiveBook: 109 Games} a6 {[%emt 0:00:18] B07: Pirc Defence: Miscellaneous Systems} (5... O-O 6. Bh6 Bxh6 7. Qxh6 e5 8. O-O-O exd4 9. Rxd4 Nc6 10. Rd1 Be6 11. h4 Ng4 12. Qd2 Qf6 13. f3 Nge5 14. f4 {½-½ (37) Matlakov,M (2683)-Chigaev,M (2599) Sochi 2018}) 6. a4 {[%emt 0:00:08]} Nc6 {[%emt 0:00:16]} 7. Nf3 {[%emt 0:01:00]} Bg4 {[%emt 0:00:24]} 8. Be2 {[%emt 0:00:14]} Bxf3 {[%emt 0:00:19]} 9. Bxf3 {[%emt 0:00:11]} Nd7 $146 {[%emt 0:00:02]} ({Predecessor:} 9... e5 10. dxe5 dxe5 11. Be3 Qxd2+ 12. Bxd2 Nd4 13. Bd1 {½-½ (38) Jurcisin,I (2054)-Hantak,A (2191) Stare Mesto 2009}) 10. Be3 {[%emt 0:00:18]} e5 {[%emt 0:00:21]} 11. Ne2 {[%emt 0:00:38]} exd4 {[%emt 0:00:10]} 12. Nxd4 {[%emt 0:00:01]} Bxd4 {[%emt 0:00:03]} 13. Bxd4 {[%emt 0:00:04]} Nxd4 {[%emt 0:00:02]} 14. Qxd4 {[%emt 0:00:02]} O-O {[%emt 0:00:08]} 15. O-O {[%emt 0:00:10]} Ne5 {[%emt 0:00:42]} 16. Be2 {[%emt 0:00:25]} Nc6 {[%emt 0:00:12]} 17. Qc3 {[%emt 0:00:21]} Qe7 {[%emt 0:00:08]} 18. Bd3 {[%emt 0:00:04]} Qe5 {[%emt 0:00:20]} 19. Qxe5 {[%emt 0:00:03]} dxe5 {[%emt 0:00:02]} 20. Rfd1 {[%emt 0:01:17]} a5 {[%emt 0:00:25]} 21. c3 {[%emt 0:00:11]} Rad8 {[%emt 0:00:13]} 22. Kf1 {[%emt 0:00:42]} Rd6 {[%emt 0:00:16]} 23. Bb5 {[%emt 0:00:28]} Rfd8 {[%emt 0:00:01]} 24. Rxd6 {[%emt 0:00:08]} Rxd6 {[%emt 0:00:01]} 25. Bxc6 {[%emt 0:00:14]} Rxc6 {[%emt 0:00:01]} 26. Rd1 {[%emt 0:00:08] [#]} (26. Ke2 $11) 26... Rb6 {[%emt 0:00:00]} (26... Rc4 $1 $17) 27. Rd2 {[%emt 0:00:09]} Kf8 {[%emt 0:00:05]} 28. Ke2 {[%emt 0:00:01]} Ke7 {[%emt 0:00:04]} 29. Ke3 {[%emt 0:00:25]} f6 {[%emt 0:00:04]} 30. Ke2 {[%emt 0:00:05]} Rc6 {[%emt 0:00:09]} 31. Kd3 {[%emt 0:00:05]} Rd6+ {[%emt 0:00:27]} 32. Ke3 {[%emt 0:00:17]} Rxd2 33. Kxd2 {[%emt 0:00:01]} Kd6 {[%emt 0:00:02]} 34. b4 {[%emt 0:00:15]} axb4 {[%emt 0:02:42]} 35. cxb4 {[%emt 0:00:04]} c5 {[%emt 0:00:06]} 36. Kc3 {[%emt 0:00:30]} cxb4+ {[%emt 0:00:07]} 37. Kxb4 {[%emt 0:00:02]} Kc6 {[%emt 0:00:01]} 38. a5 {[%emt 0:00:21]} h5 {[%emt 0:00:25]} 39. f3 $11 {[%emt 0:00:45]} (39. h4 $1 $14) 39... f5 {[%emt 0:00:41]} 40. h4 {[%emt 0:00:23]} b6 {[%emt 0:00:07]} 41. a6 {[%emt 0:00:16]} f4 {[%emt 0:00:23]} 42. Ka4 {[%emt 0:00:28]} 1-0